[Event "Liberia Championship 2023"]
[Site "Monrovia"]
[Date "2024.01.23"]
[Round "8.2"]
[White "David Leroy Debblay"]
[Black "Obediah Saah"]
[Result "1-0"]
[ECO "C58"]
[WhiteElo "1791"]
[BlackElo "1756"]
[Annotator "NA RC"]
[PlyCount "179"]
[EventDate "2024.01.16"]
[EventType "swiss"]
[EventCountry "LBR"]
[SourceTitle "playchess.com"]
[Source "ChessBase"]
[SourceQuality "1"]
[TimeControl "40/5400+30:1800+30"]

1. e4 {[%emt 0:00:02]} e5 {[%emt 0:01:44]} 2. Nf3 {[%emt 0:00:09]} Nc6 {[%emt 0:00:04]} 3. Bc4 {[%emt 0:00:05]} Nf6 {[%emt 0:00:02]} 4. Ng5 {[%emt 0:00:43]} d5 {[%emt 0:03:34]} 5. exd5 {[%emt 0:05:20]} Na5 {[%emt 0:00:31]} 6. Bb5+ {[%emt 0:00:21]} c6 {[%emt 0:00:20]} 7. dxc6 {[%emt 0:00:15]} bxc6 {[%emt 0:01:02]} 8. Bd3 {[%emt 0:00:09]} h6 {[%emt 0:12:19]} 9. Ne4 {[%emt 0:00:34]} Nxe4 {[%emt 0:04:13]} 10. Bxe4 {[%emt 0:00:09]} Qh4 {[%emt 0:04:17]} 11. Qf3 {[%emt 0:04:00]} Bd7 {[%emt 0:01:36]} 12. d3 {[%emt 0:01:24]} Rc8 {[%emt 0:00:34]} 13. h3 {[%emt 0:02:15]} Bd6 {[%emt 0:00:49]} 14. Bd2 {[%emt 0:02:05]} Nb7 {[%emt 0:00:46]} 15. Bf5 {[%emt 0:02:03]} Bxf5 {[%emt 0:01:28]} 16. Qxf5 {[%emt 0:00:13]} O-O {[%emt 0:00:08]} 17. Qg4 {[%emt 0:01:31]} Qxg4 {[%emt 0:05:12]} 18. hxg4 {[%emt 0:00:19]} Be7 {[%emt 0:00:14]} 19. Nc3 {[%emt 0:00:49]} Nd8 {[%emt 0:01:32]} 20. Ne4 {[%emt 1:18:04]} Ne6 {[%emt 0:00:53]} 21. Bc3 {[%emt 0:00:00]} f6 {[%emt 0:00:39]} 22. O-O {[%emt 0:00:00]} Rb8 {[%emt 0:02:12]} 23. a3 {[%emt 0:00:00]} c5 {[%emt 0:01:14]} 24. b3 {[%emt 0:00:00]} Rb7 {[%emt 0:01:37]} 25. Nd2 {[%emt 0:00:00]} Nf4 {[%emt 0:01:41]} 26. Rfe1 {[%emt 0:00:00]} Kf7 {[%emt 0:02:11]} 27. Nc4 {[%emt 0:00:00]} Rd8 {[%emt 0:02:58]} 28. g3 {[%emt 0:00:00]} Ne6 {[%emt 0:02:36]} 29. Re2 {[%emt 0:00:00]} Nd4 {[%emt 0:06:25]} 30. Bxd4 {[%emt 0:00:00]} Rxd4 {[%emt 0:03:28]} 31. f3 {[%emt 0:00:00]} Bf8 {[%emt 0:04:54]} 32. Rd1 {[%emt 0:00:00]} g6 {[%emt 0:01:44]} 33. Kf2 {[%emt 0:00:00]} Rb8 {[%emt 0:01:20]} 34. c3 {[%emt 0:00:00]} Rd7 {[%emt 0:01:18]} 35. Rb2 {[%emt 0:00:00]} Re8 {[%emt 0:03:22]} 36. Rdd2 {[%emt 0:00:00]} Ke6 {[%emt 0:02:52]} 37. b4 {[%emt 0:00:00]} Red8 {[%emt 0:00:21]} 38. Ke2 {[%emt 0:00:00]} f5 {[%emt 0:00:49]} 39. gxf5+ {[%emt 0:00:00]} gxf5 {[%emt 0:00:26]} 40. b5 {[%emt 0:00:00]} Be7 {[%emt 0:00:00]} 41. a4 {[%emt 0:00:00]} Bg5 {[%emt 0:05:05]} 42. Ne3 {[%emt 0:00:00]} f4 {[%emt 0:05:25]} 43. gxf4 {[%emt 0:00:00]} Bxf4 {[%emt 0:02:34]} 44. c4 {[%emt 0:00:00]} h5 {[%emt 0:01:53]} 45. Rd1 {[%emt 0:00:00]} h4 {[%emt 0:02:07]} 46. Nd5 {[%emt 0:00:00]} Bg3 {[%emt 0:02:07]} 47. Rh1 {[%emt 0:00:00]} Rf8 {[%emt 0:02:49]} 48. a5 {[%emt 0:00:00]} Rdf7 {[%emt 0:01:47]} 49. Rf1 {[%emt 0:00:00]} Kd6 {[%emt 0:08:06]} 50. b6 {[%emt 0:00:00]} Rb8 {[%emt 0:07:03]} 51. Rb5 {[%emt 0:00:00]} a6 {[%emt 0:03:28]} 52. Rbb1 {[%emt 0:00:00]} Kc6 {[%emt 0:01:45]} 53. Nc3 {[%emt 0:00:00]} Rg7 {[%emt 0:03:16]} 54. Ne4 {[%emt 0:00:00]} Bf4 {[%emt 0:01:15]} 55. Nf6 {[%emt 0:00:00]} Rg2+ {[%emt 0:03:05]} 56. Rf2 {[%emt 0:00:00]} Rxf2+ {[%emt 0:01:27]} 57. Kxf2 {[%emt 0:00:00]} Bd2 {[%emt 0:01:19]} 58. Ra1 {[%emt 0:04:19]} Bc3 {[%emt 0:03:34]} 59. Ra2 {[%emt 0:00:37]} Rf8 {[%emt 0:01:16]} 60. Ng4 {[%emt 0:01:01]} Rd8 {[%emt 0:01:21]} 61. Ke3 {[%emt 0:00:58]} Bd4+ {[%emt 0:00:50]} 62. Ke4 {[%emt 0:03:46]} Kd6 {[%emt 0:00:57]} 63. f4 {[%emt 0:00:41]} exf4 {[%emt 0:00:59]} 64. Kxf4 {[%emt 0:03:37]} Rf8+ {[%emt 0:00:37]} 65. Ke4 {[%emt 0:04:14]} Re8+ {[%emt 0:00:36]} 66. Kf3 {[%emt 0:02:59]} Re1 {[%emt 0:00:49]} 67. Rh2 {[%emt 0:31:18]} Re8 {[%emt 0:05:05]} 68. Rxh4 {[%emt 0:00:30]} Rh8 {[%emt 0:00:30]} 69. Rxh8 {[%emt 0:00:30]} Bxh8 {[%emt 0:00:30]} 70. Nf2 {[%emt 0:00:30]} Bb2 {[%emt 0:00:30]} 71. Ne4+ {[%emt 0:00:30]} Kc6 {[%emt 0:00:30]} 72. Nd2 {[%emt 0:00:30]} Bd4 {[%emt 0:00:30]} 73. Ke4 {[%emt 0:00:30]} Bf2 {[%emt 0:00:30]} 74. Ke5 {[%emt 0:00:00]} Bd4+ {[%emt 0:00:00]} 75. Ke6 {[%emt 0:00:00]} Bf2 {[%emt 0:00:00]} 76. Nb3 {[%emt 0:00:00]} Bg1 {[%emt 0:00:00]} 77. Ke7 {[%emt 0:00:00]} Bf2 {[%emt 0:00:00]} 78. Kd8 {[%emt 0:00:00]} Be1 {[%emt 0:00:00]} 79. Kc8 {[%emt 0:00:00]} Bxa5 {[%emt 0:00:00]} 80. b7 {[%emt 0:00:00]} Bc7 {[%emt 0:00:00]} 81. Nxc5 {[%emt 0:00:00]} a5 {[%emt 0:00:00]} 82. Na4 {[%emt 0:00:00]} Kd6 {[%emt 0:00:48]} 83. b8=Q {[%emt 0:00:00]} Bxb8 {[%emt 0:00:14]} 84. Kxb8 {[%emt 0:00:00]} Ke5 {[%emt 0:00:02]} 85. c5 {[%emt 0:00:00]} Kd5 {[%emt 0:02:04]} 86. Kb7 {[%emt 0:00:00]} Kd4 {[%emt 0:00:31]} 87. c6 {[%emt 0:00:00]} Kxd3 {[%emt 0:00:10]} 88. c7 {[%emt 0:07:30]} Kc4 {[%emt 0:03:41]} 89. c8=Q+ {[%emt 0:00:00]} Kb4 {[%emt 0:00:00]} 90. Nb6 {[%emt 0:00:00]} 1-0

[Event "Liberia Championship 2023"]
[Site "Monrovia"]
[Date "2024.01.23"]
[Round "8.3"]
[White "Barcon, Harmon"]
[Black "Alfred J. Kollie"]
[Result "1-0"]
[ECO "C66"]
[WhiteElo "1902"]
[BlackElo "1612"]
[Annotator "RC"]
[PlyCount "129"]
[EventDate "2024.01.16"]
[EventType "swiss"]
[EventCountry "LBR"]
[SourceTitle "playchess.com"]
[Source "ChessBase"]
[SourceQuality "1"]
[TimeControl "40/5400+30:1800+30"]

1. e4 {[%emt 0:00:03]} e5 {[%emt 0:00:22]} 2. Nf3 {[%emt 0:00:06]} Nc6 {[%emt 0:00:25]} 3. Bb5 {[%emt 0:00:11]} d6 {[%emt 0:00:18]} 4. O-O {[%emt 0:00:16]} Be7 {[%emt 0:00:32]} 5. h3 {[%emt 0:00:15]} Nf6 {[%emt 0:00:14]} 6. Re1 {[%emt 0:00:03]} Bd7 {[%emt 0:00:33]} 7. c3 {[%emt 0:00:07]} O-O {[%emt 0:00:21]} 8. d4 {[%emt 0:00:02]} a6 {[%emt 0:02:04]} 9. Bd3 {[%emt 0:00:13]} h6 {[%emt 0:00:26]} 10. Nbd2 {[%emt 0:00:07]} Nh7 {[%emt 0:00:39]} 11. Nf1 {[%emt 0:00:13]} Ng5 {[%emt 0:00:25]} 12. Ng3 {[%emt 0:00:17]} Nxf3+ {[%emt 0:00:13]} 13. Qxf3 {[%emt 0:00:08]} exd4 {[%emt 0:00:35]} 14. cxd4 {[%emt 0:00:31]} Nxd4 {[%emt 0:00:10]} 15. Qd1 {[%emt 0:00:17]} Nc6 {[%emt 0:00:30]} 16. Be3 {[%emt 0:00:08]} Bf6 {[%emt 0:00:23]} 17. Qd2 {[%emt 0:01:21]} Ne5 {[%emt 0:00:29]} 18. Bf1 {[%emt 0:00:09]} Be6 {[%emt 0:02:16]} 19. Qc2 {[%emt 0:01:18]} Bh4 {[%emt 0:01:45]} 20. Ne2 {[%emt 0:06:28]} Nc4 {[%emt 0:00:56]} 21. Bc1 {[%emt 0:00:24]} Qf6 {[%emt 0:00:38]} 22. g3 {[%emt 0:01:42]} Ne5 {[%emt 0:01:42]} 23. Bg2 {[%emt 0:03:55]} Nf3+ {[%emt 0:00:58]} 24. Bxf3 {[%emt 0:00:10]} Qxf3 {[%emt 0:00:12]} 25. Nd4 {[%emt 0:00:47]} Qf6 {[%emt 0:01:18]} 26. Nf5 {[%emt 0:00:30]} Bxf5 {[%emt 0:00:51]} 27. exf5 {[%emt 0:00:03]} Bg5 {[%emt 0:00:32]} 28. f4 {[%emt 0:01:40]} Rae8 {[%emt 0:00:27]} 29. Be3 {[%emt 0:06:13]} Rxe3 {[%emt 0:01:06]} 30. Rxe3 {[%emt 0:00:03]} Qd4 {[%emt 0:00:17]} 31. Qc3 {[%emt 0:00:24]} Bf6 {[%emt 0:01:32]} 32. Kh2 {[%emt 0:00:13]} Qb6 {[%emt 0:00:22]} 33. Qb3 {[%emt 0:00:23]} Bxb2 {[%emt 0:05:37]} 34. Qxb6 {[%emt 0:00:07]} cxb6 {[%emt 0:01:08]} 35. Rd1 {[%emt 0:00:04]} Rc8 {[%emt 0:00:57]} 36. Kg2 {[%emt 0:01:32]} Rc2+ {[%emt 0:00:18]} 37. Kf3 {[%emt 0:00:33]} Bc1 {[%emt 0:03:14]} 38. Re8+ {[%emt 0:02:08]} Kh7 {[%emt 0:00:18]} 39. Rxd6 {[%emt 0:00:10]} Rc3+ {[%emt 0:01:02]} 40. Kf2 {[%emt 0:00:00]} Ba3 {[%emt 1:14:25]} 41. Rdd8 {[%emt 0:06:26]} Bc5+ {[%emt 0:00:00]} 42. Kg2 {[%emt 0:01:09]} g5 {[%emt 0:00:00]} 43. Rg8 {[%emt 0:02:19]} gxf4 {[%emt 0:00:00]} 44. gxf4 {[%emt 0:00:37]} Be7 {[%emt 0:00:00]} 45. Rc8 {[%emt 0:00:35]} Ra3 {[%emt 0:00:00]} 46. Rge8 {[%emt 0:02:04]} Bh4 {[%emt 0:00:00]} 47. Rh8+ {[%emt 0:04:42]} Kg7 {[%emt 0:00:00]} 48. Rcg8+ {[%emt 0:00:30]} Kf6 {[%emt 0:00:00]} 49. Rxh6+ {[%emt 0:00:30]} Kxf5 {[%emt 0:00:00]} 50. Rxh4 {[%emt 0:00:30]} Rxa2+ {[%emt 0:00:00]} 51. Kf3 {[%emt 0:01:17]} Ra3+ {[%emt 0:00:00]} 52. Ke2 {[%emt 0:00:32]} b5 {[%emt 0:00:00]} 53. Rg5+ {[%emt 0:00:36]} Ke6 {[%emt 0:00:00]} 54. Re5+ {[%emt 0:00:36]} Kf6 {[%emt 0:00:00]} 55. Rh6+ {[%emt 0:02:57]} Kg7 {[%emt 0:00:00]} 56. Rb6 {[%emt 0:01:03]} Rxh3 {[%emt 0:00:00]} 57. Rxb7 {[%emt 0:00:34]} Ra3 {[%emt 0:00:00]} 58. Ree7 {[%emt 0:00:46]} Ra4 {[%emt 0:00:00]} 59. Ke3 {[%emt 0:00:50]} b4 {[%emt 0:00:00]} 60. Rxf7+ {[%emt 0:00:35]} Kg6 {[%emt 0:00:00]} 61. Rfc7 {[%emt 0:00:44]} a5 {[%emt 0:00:00]} 62. Rb5 {[%emt 0:00:41]} Ra3+ {[%emt 0:00:00]} 63. Ke4 {[%emt 0:00:57]} Rc3 {[%emt 0:00:00]} 64. Rxc3 {[%emt 0:00:46]} bxc3 {[%emt 0:00:00]} 65. Rxa5 {[%emt 1:27:30]} 1-0

[Event "Liberia Championship 2023"]
[Site "Monrovia"]
[Date "2024.01.23"]
[Round "8.4"]
[White "Arnold Smith"]
[Black "Anthony Waylea, Jr."]
[Result "1/2-1/2"]
[ECO "C84"]
[WhiteElo "1844"]
[BlackElo "1939"]
[Annotator "TA"]
[PlyCount "101"]
[EventDate "2024.01.16"]
[EventType "swiss"]
[EventCountry "LBR"]
[SourceTitle "playchess.com"]
[Source "ChessBase"]
[SourceQuality "1"]
[TimeControl "40/5400+30:1800+30"]

{[%evp 14,101,17,19,20,12,23,6,36,-17,10,6,4,-17,-10,-15,7,0,12,10,24,0,0,10,2,0,0,-20,-6,0,0,0,50,26,52,39,135,116,148,123,143,142,148,139,147,139,135,147,175,175,175,181,187,188,179,185,189,168,191,98,81,67,76,66,95,78,83,66,97,47,195,65,54,0,0,0,0,0,0,-8,-8,-41,-37,-77,-8,-8,-8,-8,47,0]} 1. e4 {[%emt 0:00:01]} Nc6 {[%emt 0:24:14]} 2. Nf3 {[%emt 0:00:11]} e5 {[%emt 0:01:38]} 3. Bb5 {[%emt 0:00:18]} a6 {[%emt 0:00:07]} 4. Ba4 {[%emt 0:01:52]} Nf6 {[%emt 0:01:16]} 5. O-O {[%emt 0:01:28]} Be7 {[%emt 0:00:26]} 6. d3 b5 {[%emt 0:00:10]} 7. Bb3 {[%emt 0:02:10]} d6 {[%emt 0:00:04]} 8. c3 {[%emt 0:01:28]} Na5 {[%emt 0:00:34]} 9. Bc2 {[%emt 0:00:10]} c5 {[%emt 0:00:08]} 10. a4 {[%emt 0:00:27]} Bd7 {[%emt 0:00:56] Die Stellung ist ausgeglichen.} 11. Bg5 {[%emt 0:02:49]} ({Vorzuziehen ist} 11. d4 $14) 11... O-O {[%emt 0:00:42]} 12. Nbd2 {[%emt 0:00:58][%cal Bb1d2,Bd2f1,Bf1e3,Be3d5][%mdl 32]} h6 {[%emt 0:00:41]} 13. Bxf6 {[%emt 0:06:45]} Bxf6 {[%emt 0:00:10]} 14. Re1 {[%emt 0:00:08]} Nc6 {[%emt 0:00:31]} 15. Nf1 {[%emt 0:00:13]} Qe7 {[%emt 0:02:02]} 16. Ne3 {[%emt 0:00:39]} Rfb8 {[%emt 0:00:51]} 17. Nd5 {[%emt 0:02:56]} Qd8 {[%emt 0:00:08]} 18. axb5 {[%emt 0:09:04]} axb5 {[%emt 0:00:23]} 19. Qd2 {[%emt 0:03:31]} Be7 {[%emt 0:00:38]} 20. d4 {[%emt 0:01:07]} Bf8 {[%emt 0:01:02]} 21. h3 {[%emt 0:01:28]} Rxa1 {[%emt 0:05:27]} 22. Rxa1 {[%emt 0:00:15]} b4 {[%emt 0:00:04]} ({Besser ist} 22... Be6 $11) 23. dxe5 {[%emt 0:02:37]} dxe5 {[%emt 0:01:43]} 24. Rd1 {[%emt 0:01:09]} b3 {[%emt 0:03:15]} (24... Be8 $14) 25. Bd3 $16 {[%emt 0:01:35] Weiß steht aktiver.} Be6 {[%emt 0:00:26]} 26. Bc4 {[%emt 0:00:58]} Qa5 {[%emt 0:08:23]} 27. Qe2 {[%emt 0:03:17]} Qa4 {[%emt 0:02:27]} 28. Ne3 {[%emt 0:02:13]} Bxc4 {[%emt 0:02:59]} 29. Qxc4 {[%emt 0:02:28]} Qxc4 {[%emt 0:01:55]} 30. Nxc4 {[%emt 0:00:07]} f6 {[%emt 0:01:06]} 31. Ra1 {[%emt 0:00:30]} Kf7 {[%emt 0:04:00]} 32. Kf1 {[%emt 0:00:07]} Nd8 {[%emt 0:03:10]} 33. Nfd2 {[%emt 0:00:27]} Ne6 {[%emt 0:00:25]} 34. g3 {[%emt 0:00:34]} Ke8 {[%emt 0:03:08]} 35. Ra3 {[%emt 0:01:54]} Kd7 {[%emt 0:00:20]} 36. Nxb3 {[%emt 0:00:58]} ({Nicht} 36. Rxb3 Rxb3 37. Nxb3 Ng5 $15) ({Günstiger ist} 36. h4 $18) 36... Ng5 {[%emt 0:00:34][%csl LRe4,LRh3]} 37. Nbd2 {[%emt 0:02:08] Hervorragende Reitkunst.} Nxh3 {[%emt 0:00:29]} 38. Kg2 {[%emt 0:00:30]} Ng5 {[%emt 0:00:10]} 39. f4 {[%emt 0:00:19]} exf4 {[%emt 0:00:35]} 40. gxf4 {[%emt 0:00:00]} Ne6 {[%emt 0:00:00]} 41. Kf3 {[%emt 0:00:26]} (41. Ra7+ $16 Ke8 42. Kf3) 41... g5 {[%emt 0:04:36] [#]} (41... Bd6 $1 $14) 42. e5 {[%emt 0:06:09]} (42. f5 $1 $18 {[%cal Rf5e6]} Nc7 43. e5) 42... Nxf4 {[%emt 0:04:10]} 43. exf6 {[%emt 0:00:49]} (43. Ra7+ $14 Ke6 44. Ra6+ Kf7 45. Rxf6+ (45. exf6 Re8 $11) 45... Kg8 46. Ra6) 43... Ke6 $11 {[%emt 0:07:09]} 44. Ra6+ {[%emt 0:00:38]} Kf5 {[%emt 0:01:12]} 45. Ne3+ {[%emt 0:00:11]} Kg6 {[%emt 0:00:28]} 46. Ndc4 {[%emt 0:00:18]} Re8 {[%emt 0:01:15] Lässt Ne5+ nicht zu} 47. Ng4 {[%emt 0:00:37] [#] Nce5+ ist eine echte Drohung.} h5 {[%emt 0:08:31]} 48. Nge3 {[%emt 0:11:18]} Re6 (48... Nd3 $17 49. Ke2 Ne5 50. Nxe5+ Rxe5) 49. Rxe6 {[%emt 0:01:07]} Nxe6 {[%emt 0:02:33]} 50. Ne5+ {[%emt 0:00:03]} ({Bitte nicht} 50. Nd5 Kf5 51. Kg2 g4 $17) 50... Kh7 {[%emt 0:38:19]} (50... Kxf6 $11 51. Ke4 g4 52. N5xg4+ hxg4 53. Nxg4+ Ke7) 51. Nd7 {[%emt 1:04:35] Schwarz hat sich erfolgreich gewehrt.   Gewichteter Fehlerwert: Weiß=0.18 (sehr präzise) /Schwarz=0.24 (präzise) .  Fehler:       	Weiß=6     	Schwarz=5     Ungenau:       	Weiß=2     	Schwarz=3     OK:         	Weiß=9     	Schwarz=6     Bester:       	Weiß=1     	Schwarz=8} (51. Ke4 $14) 1/2-1/2

[Event "Liberia Championship 2023"]
[Site "Monrovia"]
[Date "2024.01.23"]
[Round "8.5"]
[White "Joel O. Ebiekuta"]
[Black "James, Tondo"]
[Result "*"]
[ECO "C17"]
[WhiteElo "1875"]
[BlackElo "1837"]
[Annotator "NA RC"]
[PlyCount "39"]
[EventDate "2024.01.16"]
[EventType "swiss"]
[EventCountry "LBR"]
[SourceTitle "playchess.com"]
[Source "ChessBase"]
[SourceQuality "1"]
[TimeControl "40/5400+30:1800+30"]

1. e4 {[%emt 0:02:52]} e6 {[%emt 0:05:11]} 2. d4 {[%emt 0:00:18]} d5 {[%emt 0:00:50]} 3. Nc3 {[%emt 1:28:50]} Bb4 {[%emt 1:25:59]} 4. e5 {[%emt 0:00:30]} c5 {[%emt 0:00:30]} 5. Nf3 {[%emt 0:00:30]} Bxc3+ {[%emt 0:00:00]} 6. bxc3 {[%emt 0:00:00]} c4 {[%emt 0:00:00]} 7. Bg5 {[%emt 0:00:00]} Qa5 {[%emt 0:00:00]} 8. Qd2 {[%emt 0:00:00]} h6 {[%emt 0:00:00]} 9. Bh4 {[%emt 0:00:00]} Na6 {[%emt 0:00:00]} 10. Ng1 {[%emt 0:00:00]} Nc7 {[%emt 0:03:00]} 11. f3 {[%emt 0:00:00]} Nb5 {[%emt 0:00:00]} 12. f4 {[%emt 0:00:00]} Na3 {[%emt 0:00:00]} 13. Ne2 {[%emt 0:00:00]} Qa4 {[%emt 0:00:00]} 14. g4 {[%emt 0:00:00]} Qb5 {[%emt 0:00:00]} 15. Rc1 {[%emt 0:00:00]} Ne7 {[%emt 0:00:00]} 16. Bg2 {[%emt 0:00:00]} Ng6 {[%emt 0:00:00]} 17. O-O {[%emt 0:00:00]} Ne7 {[%emt 0:00:00]} 18. Bxe7 {[%emt 0:00:00]} h5 {[%emt 0:00:00]} 19. f5 Kxe7 {[%emt 0:00:00]} 20. Qg5+ {[%emt 0:00:00]} *

[Event "Liberia Championship 2023"]
[Site "Monrovia"]
[Date "2024.01.23"]
[Round "8.5"]
[White "Joel O. Ebiekuta"]
[Black "James, Tondo"]
[Result "1-0"]
[ECO "C41"]
[WhiteElo "1875"]
[BlackElo "1837"]
[Annotator "NA RC"]
[PlyCount "83"]
[EventDate "2024.01.16"]
[EventType "swiss"]
[EventCountry "LBR"]
[SourceTitle "playchess.com"]
[Source "ChessBase"]
[SourceQuality "1"]
[TimeControl "40/5400+30:1800+30"]

1. e4 {[%emt 0:22:02]} e5 {[%emt 0:00:04]} 2. Nf3 {[%emt 0:00:00]} Nc6 {[%emt 0:00:02]} 3. d4 {[%emt 0:00:01]} d6 {[%emt 0:00:56]} 4. h3 {[%emt 0:00:02]} Be7 {[%emt 0:00:24]} 5. Nc3 {[%emt 0:00:02]} Nf6 {[%emt 0:00:49]} 6. Be3 {[%emt 0:00:02]} exd4 {[%emt 0:01:11]} 7. Nxd4 {[%emt 0:00:02]} Nxd4 {[%emt 0:00:11]} 8. Bxd4 {[%emt 0:00:23]} O-O {[%emt 0:00:09]} 9. Bd3 {[%emt 0:00:00]} Be6 {[%emt 0:05:21]} 10. Qf3 {[%emt 0:00:18]} a6 11. O-O {[%emt 0:00:17]} b5 {[%emt 0:01:59]} 12. e5 {[%emt 0:00:11]} dxe5 {[%emt 0:01:43]} 13. Bxe5 {[%emt 0:00:06]} Nd7 {[%emt 0:03:15]} 14. Bg3 {[%emt 0:00:33]} Nc5 {[%emt 0:06:07]} 15. Be2 {[%emt 0:01:52]} Bf6 {[%emt 0:05:21]} 16. Rad1 {[%emt 0:00:20]} Qe7 {[%emt 0:00:43]} 17. Rfe1 {[%emt 0:00:14]} b4 {[%emt 0:08:18]} 18. Nd5 {[%emt 0:02:28]} Bxd5 {[%emt 0:01:08]} 19. Rxd5 {[%emt 0:00:11]} Bxb2 {[%emt 0:02:33]} 20. Red1 {[%emt 0:00:19]} Rad8 {[%emt 0:03:18]} 21. Bc4 {[%emt 0:00:02]} Rxd5 {[%emt 0:01:43]} 22. Rxd5 {[%emt 0:00:22]} Bf6 {[%emt 0:06:07]} 23. Kh2 {[%emt 0:02:54]} Rd8 {[%emt 0:03:29]} 24. Rxd8+ {[%emt 0:00:11]} Qxd8 {[%emt 0:00:10]} 25. Qc6 {[%emt 0:00:41]} Ne6 {[%emt 0:08:42]} 26. Bxe6 {[%emt 0:00:10]} fxe6 {[%emt 0:00:03]} 27. Qxe6+ {[%emt 0:00:01]} Kf8 {[%emt 0:00:35]} 28. Qxa6 {[%emt 0:01:04]} Be7 {[%emt 0:04:40]} 29. Qc6 {[%emt 0:01:16]} Bd6 {[%emt 0:04:10]} 30. Bxd6+ {[%emt 0:00:22]} cxd6 {[%emt 0:00:26]} 31. Qe4 {[%emt 0:00:47]} Qb6 {[%emt 0:01:39]} 32. Kg3 {[%emt 0:00:54]} g6 {[%emt 0:01:43]} 33. f4 {[%emt 0:01:50]} Qc5 {[%emt 0:00:22]} 34. Qe6 {[%emt 0:01:02]} Kg7 {[%emt 0:02:41]} 35. Qe7+ {[%emt 0:00:20]} Kh6 {[%emt 0:02:42]} 36. Qf8+ {[%emt 0:00:28]} Kh5 {[%emt 0:00:06]} 37. Kh2 {[%emt 0:01:01]} Qxc2 {[%emt 0:00:24]} 38. Qg7 {[%emt 0:00:32]} h6 {[%emt 0:01:12]} 39. Qb7 {[%emt 0:01:05]} Qf2 {[%emt 0:07:32]} 40. Qxb4 {[%emt 0:00:00]} Qxa2 {[%emt 0:00:00]} 41. Qxd6 {[%emt 0:05:11]} Qf2 {[%emt 0:08:30]} 42. Qd1+ {[%emt 0:00:46]} 1-0

[Event "Liberia Championship 2023"]
[Site "Monrovia"]
[Date "2024.01.23"]
[Round "8.7"]
[White "Jacob, Jallah"]
[Black "Kennedy Zinnah Kengo"]
[Result "0-1"]
[ECO "A15"]
[WhiteElo "1781"]
[BlackElo "1789"]
[Annotator "NA RC"]
[PlyCount "120"]
[EventDate "2024.01.16"]
[EventType "swiss"]
[EventCountry "LBR"]
[SourceTitle "playchess.com"]
[Source "ChessBase"]
[SourceQuality "1"]
[TimeControl "40/5400+30:1800+30"]

1. Nf3 {[%emt 1:31:00]} Nf6 {[%emt 0:04:40]} 2. g3 {[%emt 0:00:00]} g6 {[%emt 0:00:14]} 3. Bg2 {[%emt 0:00:00]} Bg7 {[%emt 0:00:07]} 4. O-O {[%emt 0:00:00]} O-O {[%emt 0:00:05]} 5. c4 {[%emt 0:00:00]} e6 {[%emt 0:00:24]} 6. Nc3 {[%emt 0:00:00]} d5 {[%emt 0:00:27]} 7. cxd5 {[%emt 0:00:00]} exd5 {[%emt 0:00:16]} 8. d4 {[%emt 0:00:00]} Nbd7 {[%emt 0:00:10]} 9. Bg5 {[%emt 0:00:00]} c6 {[%emt 0:00:27]} 10. Qd2 {[%emt 0:00:00]} Qe7 {[%emt 0:00:20]} 11. Rfe1 {[%emt 0:00:00]} Qb4 {[%emt 0:04:05]} 12. e4 {[%emt 0:00:00]} dxe4 {[%emt 0:01:09]} 13. Nxe4 {[%emt 0:00:00]} Qxd2 {[%emt 0:00:07]} 14. Nxf6+ {[%emt 0:00:00]} Nxf6 {[%emt 0:00:32]} 15. Nxd2 {[%emt 0:00:00]} Be6 {[%emt 0:00:29]} 16. b3 {[%emt 0:00:00]} Nd5 {[%emt 0:01:24]} 17. Bxd5 {[%emt 0:00:00]} Bxd5 {[%emt 0:00:19]} 18. Be3 {[%emt 0:00:00]} Rfe8 {[%emt 0:00:16]} 19. Rac1 {[%emt 0:00:00]} Re6 {[%emt 0:00:21]} 20. Kf1 {[%emt 0:00:00]} Rae8 {[%emt 0:01:30]} 21. h3 {[%emt 0:00:00]} h6 {[%emt 0:00:33]} 22. h4 {[%emt 0:00:00]} f5 {[%emt 0:00:22]} 23. a4 {[%emt 0:00:00]} g5 {[%emt 0:00:40]} 24. hxg5 {[%emt 0:00:00]} hxg5 {[%emt 0:00:08]} 25. Nc4 {[%emt 0:00:00]} Rh6 {[%emt 0:01:33]} 26. f3 {[%emt 0:00:00]} Bxc4+ {[%emt 0:09:52]} 27. bxc4 {[%emt 0:00:00]} Rxe3 {[%emt 0:00:24]} 28. Rxe3 {[%emt 0:00:00]} Rh1+ {[%emt 0:01:00]} 29. Ke2 {[%emt 0:00:00]} Rxc1 {[%emt 0:00:06]} 30. Re7 {[%emt 0:00:00]} Rxc4 {[%emt 0:00:37]} 31. Rxb7 {[%emt 0:00:00]} Bxd4 {[%emt 0:00:09]} 32. a5 {[%emt 0:00:00]} Ra4 {[%emt 0:00:29]} 33. Rc7 {[%emt 0:00:00]} Rxa5 {[%emt 0:00:30]} 34. Rxc6 {[%emt 0:00:00]} f4 {[%emt 0:00:14]} 35. gxf4 {[%emt 0:00:00]} gxf4 {[%emt 0:00:07]} 36. Kd3 {[%emt 0:00:00]} Be3 {[%emt 0:00:06]} 37. Ke4 {[%emt 0:00:00]} Kf7 {[%emt 0:00:24]} 38. Rh6 {[%emt 0:00:00]} Ke7 {[%emt 0:00:39]} 39. Rc6 {[%emt 0:00:00]} Kd7 {[%emt 0:00:04]} 40. Rc4 {[%emt 0:00:00]} Rb5 {[%emt 0:00:38]} 41. Rc2 {[%emt 0:01:48]} a5 {[%emt 0:32:22]} 42. Rh2 {[%emt 0:00:33]} a4 {[%emt 0:00:43]} 43. Ra2 {[%emt 0:00:40]} Ra5 {[%emt 0:00:34]} 44. Kd3 {[%emt 0:00:36]} a3 {[%emt 0:00:35]} 45. Kc2 {[%emt 0:02:52]} Rc5+ {[%emt 0:01:45]} 46. Kb3 {[%emt 0:00:53]} Bc1 {[%emt 0:00:37]} 47. Re2 {[%emt 0:02:04]} Bb2 {[%emt 0:00:36]} 48. Rd2+ {[%emt 0:03:44]} Ke6 {[%emt 0:00:43]} 49. Rd3 {[%emt 0:00:37]} Rc1 {[%emt 0:01:01]} 50. Ka2 {[%emt 0:00:48]} Ra1+ {[%emt 0:00:46]} 51. Kb3 {[%emt 0:01:13]} Re1 {[%emt 0:00:39]} 52. Ka2 {[%emt 0:01:16]} Re3 {[%emt 0:01:30]} 53. Rd8 {[%emt 0:01:20]} Rxf3 {[%emt 0:00:38]} 54. Ra8 {[%emt 0:00:40]} Rf1 {[%emt 0:00:41]} 55. Rf8 {[%emt 0:01:00]} f3 {[%emt 0:00:37]} 56. Rf4 {[%emt 0:01:41]} f2 {[%emt 0:00:37]} 57. Kb3 {[%emt 0:00:40]} Be5 {[%emt 0:02:27]} 58. Rf3 {[%emt 0:02:27]} Bd6 {[%emt 0:00:39]} 59. Re3+ {[%emt 0:01:50]} Kf5 {[%emt 0:01:03]} 60. Ka2 {[%emt 0:00:44]} Ra1+ {[%emt 0:00:46]} 0-1

[Event "Liberia Championship 2023"]
[Site "Monrovia"]
[Date "2024.01.23"]
[Round "8.8"]
[White "Martin Dunbar"]
[Black "Miller Moore"]
[Result "0-1"]
[ECO "C50"]
[WhiteElo "1709"]
[BlackElo "1677"]
[Annotator "NA RC"]
[PlyCount "37"]
[EventDate "2024.01.16"]
[EventType "swiss"]
[EventCountry "LBR"]
[SourceTitle "playchess.com"]
[Source "ChessBase"]
[SourceQuality "1"]
[TimeControl "40/5400+30:1800+30"]

1. e4 {[%emt 1:31:00]} e5 {[%emt 0:00:50]} 2. Bc4 {[%emt 0:00:00]} Bc5 {[%emt 0:00:20]} 3. Nf3 {[%emt 0:00:00]} Nc6 {[%emt 0:00:11]} 4. a3 {[%emt 0:00:00]} Nf6 {[%emt 0:00:22]} 5. d3 {[%emt 0:00:00]} O-O {[%emt 0:00:33]} 6. Bg5 {[%emt 0:00:00]} Be7 {[%emt 0:01:09]} 7. Nc3 {[%emt 0:00:00]} a6 {[%emt 0:01:11]} 8. h3 {[%emt 0:00:00]} Kh8 {[%emt 0:02:04]} 9. Qd2 {[%emt 0:00:00]} h6 {[%emt 0:00:26]} 10. Be3 {[%emt 0:00:00]} b5 {[%emt 0:01:07]} 11. Bb3 {[%emt 0:00:00]} Bb7 {[%emt 0:01:41]} 12. g4 {[%emt 0:00:00]} Nh7 {[%emt 0:01:22]} 13. O-O-O {[%emt 0:06:00]} b4 {[%emt 1:25:44]} 14. axb4 {[%emt 0:00:00]} Bxb4 {[%emt 0:00:00]} 15. g5 {[%emt 0:00:00]} h5 {[%emt 0:00:00]} 16. Bxf7 {[%emt 0:01:30]} Rxf7 {[%emt 0:00:00]} 17. Nh4 {[%emt 0:00:00]} Nf8 {[%emt 0:00:00]} 18. Qe2 {[%emt 0:01:00]} g6 {[%emt 0:02:30]} 19. Nxg6+ {[%emt 0:00:00]} 0-1